Workbook

Sheet Input
B1: Transportation Analysis Project Costing Tool
B8: Summary of User Inputs:
A10: 1 | B10: Name of Study Area: | C10: I-4 Test
A11: 2 | B11: Number of Intersections: | C11: 6
A12: 3 | B12: Number of Freeway Ramps: | C12: 10
A13: 4 | B13: Base Model Availability: | C13: No
A14: 5 | B14: Is the Base Model Calibrated: | C14: No
A15: 6 | B15: Number of Analysis Horizons: | C15: 3
A16: 7 | B16: Number of Alternatives: | C16: 2
A17: 8 | B17: Number of Representative Days: | C17: 1
A18: 9 | B18: Number of Peak Periods | C18: 2
A19: 10 | B19: Data Processing Requirements: | C19: Low
A20: 11 | B20: Complexity of Analysis Scenarios: | C20: Complex
A21: 12 | B21: Complexity of Methodology: | C21: Stochastic/Dynamic
A22: 13 | B22: Complexity of Outputs: | C22: Simple
A23: 14 | B23: Analyst Experience: | C23: Considerable
B26: Note: This Transportation Analysis Costing Tool is provided "as is" without warranty of any kind, and without any documentation, user's guide, or maintenance agreement

Sheet Calculations
B1: =Input!B1 -> Transportation Analysis Project Costing Tool
A2: INPUT DATA
B4: Blue cells indicate numeric values that can be modified by the user.
A6: Summary of User Inputs:
B8: =Input!B10 -> Name of Study Area: | C8: =Study_Area -> I-4 Test
B9: =Input!B11 -> Number of Intersections: | C9: =Intersections -> 6
B10: =Input!B12 -> Number of Freeway Ramps: | C10: =Ramps -> 10
B11: =Input!B13 -> Base Model Availability: | C11: =BM_Avail -> No
B12: =Input!B14 -> Is the Base Model Calibrated: | C12: =BM_Calib -> No
B13: =Input!B15 -> Number of Analysis Horizons: | C13: =Time_Horizons -> 3
B14: =Input!B16 -> Number of Alternatives: | C14: =Alternatives -> 2
B15: =Input!B17 -> Number of Representative Days: | C15: =Op_Cond -> 1
B16: =Input!B18 -> Number of Peak Periods | C16: =Peak_Periods -> 2
B17: =Input!B19 -> Data Processing Requirements: | C17: =Data_Collect -> Low
B18: =Input!B20 -> Complexity of Analysis Scenarios: | C18: =Complex_Scen -> Complex
B19: =Input!B21 -> Complexity of Methodology: | C19: =Complex_Meth -> Stochastic/Dynamic
B20: =Input!B22 -> Complexity of Outputs: | C20: =Complex_Output -> Simple
B21: =Input!B23 -> Analyst Experience: | C21: =Analyst_Exp -> Considerable
A23: ASSUMPTIONS
A24: Number of labor hours per average intersection: | D24: Engineer/ | H24: Engineer/
C25: Manager | D25: Planner | E25: Technician | F25: Total | G25: Manager | H25: Planner | I25: Technician | J25: Total
A26: Project Task | C26: Hours | D26: Hours | E26: Hours | F26: Hours | G26: % of total | H26: % of total | I26: % of total | J26: Percent
A27: 1 | B27: Develop workplan, analysis plan, and project management | C27: 2 | D27: 2 | E27: 1 | F27: =SUM(C27:E27) -> 5 | G27: =C27/F27 -> 0.4 | H27: =D27/F27 -> 0.4 | I27: =E27/F27 -> 0.2 | J27: =SUM(G27:I27) -> 1
A28: 2 | B28: Select analysis tool | C28: 1 | D28: 1 | E28: 0 | F28: =SUM(C28:E28) -> 2 | G28: =C28/F28 -> 0.5 | H28: =D28/F28 -> 0.5 | I28: =E28/F28 -> 0 | J28: =SUM(G28:I28) -> 1
A29: 3 | B29: Develop data plan and process data | C29: 0 | D29: 0 | E29: 3 | F29: =SUM(C29:E29) -> 3 | G29: =C29/F29 -> 0 | H29: =D29/F29 -> 0 | I29: =E29/F29 -> 1 | J29: =SUM(G29:I29) -> 1
A30: 4 | B30: Define clusters and representative days | C30: 1 | D30: 2 | E30: 0 | F30: =SUM(C30:E30) -> 3 | G30: =C30/F30 -> 0.3333333333 | H30: =D30/F30 -> 0.6666666667 | I30: =E30/F30 -> 0 | J30: =SUM(G30:I30) -> 1
A31: 5 | B31: Develop and calibrate baseline model(s) | C31: 0.5 | D31: 1 | E31: 1 | F31: 2.5 | G31: 0.2 | H31: 0.4 | I31: 0.4 | J31: 1
A32: 6 | B32: Develop future baseline model(s) | C32: 0.5 | D32: 0.5 | E32: 0.5 | F32: 1.5 | G32: 0.3333333333 | H32: 0.3333333333 | I32: 0.3333333333 | J32: 1
A33: 7 | B33: Analyze alternatives | C33: 0.2 | D33: 1 | E33: 0.5 | F33: 1.7 | G33: 0.1176470588 | H33: 0.5882352941 | I33: 0.2941176471 | J33: 1
A34: 8 | B34: Reports and presentations | C34: 2 | D34: 2 | E34: 1 | F34: 5 | G34: 0.4 | H34: 0.4 | I34: 0.2 | J34: 1
B35: Total Labor Hours | C35: =SUM(C27:C34) -> 7.2 | D35: =SUM(D27:D34) -> 9.5 | E35: =SUM(E27:E34) -> 7 | F35: 23.7 | G35: 0.3037974684 | H35: 0.4008438819 | I35: 0.2953586498 | J35: 1
A37: Number of labor hours per average freeway ramp: | D37: Engineer/ | H37: Engineer/
C38: Manager | D38: Planner | E38: Technician | F38: Total | G38: Manager | H38: Planner | I38: Technician | J38: Total
A39: Project Task | C39: Hours | D39: Hours | E39: Hours | F39: Hours | G39: % of total | H39: % of total | I39: % of total | J39: Percent
A40: 1 | B40: =$B$27 -> Develop workplan, analysis plan, and project management | C40: 2 | D40: 2 | E40: 1 | F40: =SUM(C40:E40) -> 5 | G40: =C40/F40 -> 0.4 | H40: =D40/F40 -> 0.4 | I40: =E40/F40 -> 0.2 | J40: =SUM(G40:I40) -> 1
A41: 2 | B41: =$B$28 -> Select analysis tool | C41: 1 | D41: 1 | E41: 0 | F41: =SUM(C41:E41) -> 2 | G41: =C41/F41 -> 0.5 | H41: =D41/F41 -> 0.5 | I41: =E41/F41 -> 0 | J41: =SUM(G41:I41) -> 1
A42: 3 | B42: =B29 -> Develop data plan and process data | C42: 0 | D42: 0 | E42: 3 | F42: 3 | G42: 0 | H42: 0 | I42: 1 | J42: 1
A43: 4 | B43: Define clusters and representative days | C43: 1 | D43: 2 | E43: 0 | F43: =SUM(C43:E43) -> 3 | G43: =C43/F43 -> 0.3333333333 | H43: =D43/F43 -> 0.6666666667 | I43: =E43/F43 -> 0 | J43: =SUM(G43:I43) -> 1
A44: 5 | B44: =$B$31 -> Develop and calibrate baseline model(s) | C44: 0.5 | D44: 1 | E44: 2 | F44: 3.5 | G44: 0.1428571429 | H44: 0.2857142857 | I44: 0.5714285714 | J44: 1
A45: 6 | B45: =$B$32 -> Develop future baseline model(s) | C45: 0.5 | D45: 0.5 | E45: 0.5 | F45: 1.5 | G45: 0.3333333333 | H45: 0.3333333333 | I45: 0.3333333333 | J45: 1
A46: 7 | B46: =$B$33 -> Analyze alternatives | C46: 0.5 | D46: 1 | E46: 0.5 | F46: 2 | G46: 0.25 | H46: 0.5 | I46: 0.25 | J46: 1
A47: 8 | B47: =$B$34 -> Reports and presentations | C47: 2 | D47: 2 | E47: 1 | F47: 5 | G47: 0.4 | H47: 0.4 | I47: 0.2 | J47: 1
B48: Total Labor Hours | C48: =SUM(C40:C47) -> 7.5 | D48: =SUM(D40:D47) -> 9.5 | E48: =SUM(E40:E47) -> 8 | F48: 25 | G48: 0.3 | H48: 0.38 | I48: 0.32 | J48: 1
A50: Baseline model availability factor
A51: If a baseline model is available and calibrated
B52: YesYes | C52: 0.5 | D52: for Task 5
B53: YesNo | C53: 0.8 | D53: for Task 5
B54: Partially | C54: 0.9 | D54: for Task 5
B55: No | C55: 1 | D55: for Task 5
A57: Complexity factor for different data processing requirements:
A58: Depending on the effort level for data processing
B59: Low | C59: 0.25 | D59: for Task 4
B60: Medium | C60: 0.5 | D60: for Task 4
B61: High | C61: 1 | D61: for Task 4
A63: Complexity factor for different scenarios/alternatives:
B65: Simple | C65: 1 | D65: for all Tasks
B66: Complex | C66: 1.2 | D66: for all Tasks
A69: Complexity factor for different methodologies:
B71: Deterministic | C71: 1 | D71: for Tasks 5, 6, 7
B72: Stochastic/Dynamic | C72: 1.3 | D72: for Tasks 5, 6, 7
A74: Complexity factor for different types of outputs
B76: Simple | C76: 0.9 | D76: for Task 7
B77: Comprehensive | C77: 1.1 | D77: for Task 7
A79: Complexity factor for different profesional experience profiles
B81: Some | C81: 1.2 | D81: for all Tasks
B82: Considerable | C82: 0.9 | D82: for all Tasks
A84: Economies of scale effect | I84: Data Processing | J84: Calibration | L84: Future Scenarios | M84: Alternatives Analysis
A85: Economies of scale effect due to multiple model runs | I85: Task 3 - Extra data processing efforts due to Operational Conditions | J85: Task 5 - Base Model Calibration | K85: Task 5 - Operational Condition Model Calibration | L85: Task 6 - Develop Future Scenarios | M85: Task 7 - Base Model Analysis | N85: Task 7 - Operational Condition Analysis
I86: # of Operational Conditions x # of Peak Periods | J86: # of Peak Periods | K86: # of Operational Conditions x # of Peak Periods | L86: # of Peak Periods x # of Analysis Horizons | M86: # of Alternatives x # of Peak Periods x # of Analysis Horizons | N86: # of Alternatives x # of Peak Periods x # of Analysis Horizons x # of Operational Conditions
C87: Task 3 - Extra data processing efforts due to Operational Conditions | D87: Task 5 - Base Model Calibration | E87: Task 5 - Operational Condition Model Calibration | F87: Task 6 - Develop Future Scenarios | G87: Task 7 - Base Model Analysis | H87: Task 7 - Operational Condition Analysis | I87: =C15*C16 -> 2 | J87: =C16 -> 2 | K87: =C15*C16 -> 2 | L87: =C16*C13 -> 6 | M87: =C16*C14*C13 -> 12 | N87: =C16*C15*C14*C13 -> 12 | O87: x1,2 | P87: x1,2 | Q87: x1,2 | R87: x1,2 | S87: x1,2 | T87: x1,2
B88: Tresholds to determine economies of scale | C88: 2 | D88: 1 | E88: 2 | F88: 2 | G88: 2 | H88: 4 | I88: 1 | J88: 1 | K88: 1 | L88: 1 | M88: 1 | N88: 1 | O88: =C88 -> 2 | P88: =D88 -> 1 | Q88: 2 | R88: 2 | S88: 2 | T88: 4
C89: 4 | D89: 2 | E89: 4 | F89: 4 | G89: 4 | H89: 8 | I89: 0.99 | J89: 0.99 | K89: 0.8 | L89: 0.95 | M89: 0.8 | N89: 0.8 | O89: =C89 -> 4 | P89: 2 | Q89: 4 | R89: 4 | S89: 4 | T89: 8
C90: 8 | D90: 3 | E90: 8 | F90: 6 | G90: 6 | H90: 16 | I90: 0.97 | J90: 0.97 | K90: 0.5 | L90: 0.8 | M90: 0.5 | N90: 0.5 | O90: =C90 -> 8 | P90: 3 | Q90: 8 | R90: 6 | S90: 6 | T90: 16
C91: 16 | D91: 4 | E91: 16 | F91: 8 | G91: 8 | H91: 32 | I91: 0.9 | J91: 0.9 | K91: 0.35 | L91: 0.6 | M91: 0.35 | N91: 0.35 | O91: =C91 -> 16 | P91: 4 | Q91: 16 | R91: 8 | S91: 8 | T91: 32
C92: 32 | D92: 5 | E92: 32 | F92: 10 | G92: 10 | H92: 64 | I92: 0.8 | J92: 0.8 | K92: 0.3 | L92: 0.4 | M92: 0.3 | N92: 0.3 | O92: =C92 -> 32 | P92: 5 | Q92: 32 | R92: 10 | S92: 10 | T92: 64
C93: More | D93: More | E93: More | F93: More | G93: More | H93: More | I93: 0.7 | J93: 0.7 | K93: 0.25 | L93: 0.2 | M93: 0.25 | N93: 0.25 | O93: 64 | P93: 20 | Q93: 64 | R93: 20 | S93: 20 | T93: 128
C95: Model Adjustment Factor, y2 | D95: Operational Condition Adjustment Factor, y2 | E95: Model Adjustment Factor, y1 | F95: Operational Condition Adjustment Factor, y1 | G95: Model Adjustment Factor, Linear Interpolation | H95: Operational Condition Adjustment Factor, Linear Interpolation | I95: Multiplication factor
B96: Economies of Scale Multiplication factor for Task 3 | D96: =IF(I87<=C88,I88,IF(I87<=C89,I89,IF(I87<=C90,I90,IF(I87<=C91,I91,IF(I87<=C92,I92,I93))))) -> 1 | F96: =IF(D96=1,1,IF(D96=I89,I88,IF(D96=I90,I89,IF(D96=I91,I90,IF(D96=I92,I91,I92))))) -> 1 | H96: =IF(D96=F96,1,((I87-VLOOKUP(F96,I88:O93,7,FALSE))/(VLOOKUP(D96,I88:O93,7,FALSE)-VLOOKUP(F96,I88:O93,7,FALSE)))*(D96-F96)+F96) -> 1 | I96: =H96*I87 -> 2
B97: Economies of Scale Multiplication factor for Task 5 | C97: =IF(J87<=D88,J88,IF(J87<=D89,J89,IF(J87<=D90,J90,IF(J87<=D91,J91,IF(J87<=D92,J92,J93))))) -> 0.99 | D97: =IF(K87<=E88,K88,IF(K87<=E89,K89,IF(K87<=E90,K90,IF(K87<=E91,K91,IF(K87<=E92,K92,K93))))) -> 1 | E97: =IF(C97=1,1,IF(C97=J89,J88,IF(C97=J90,J89,IF(C97=J91,J90,IF(C97=J92,J91,J92))))) -> 1 | F97: =IF(D97=1,1,IF(D97=K89,K88,IF(D97=K90,K89,IF(D97=K91,K90,IF(D97=K92,K91,K92))))) -> 1 | G97: =IF(C97=E97,1,((J87-VLOOKUP(E97,J88:P93,7,FALSE))/(VLOOKUP(C97,J88:P93,7,FALSE)-VLOOKUP(E97,J88:P93,7,FALSE)))*(C97-E97)+E97) -> 0.99 | H97: =IF(D97=F97,1,((K87-VLOOKUP(F97,K88:Q93,7,FALSE))/(VLOOKUP(D97,K88:Q93,7,FALSE)-VLOOKUP(F97,K88:Q93,7,FALSE)))*(D97-F97)+F97) -> 1 | I97: =J87*G97+K87*H97 -> 3.98
B98: Economies of Scale Multiplication factor for Task 6 | C98: =IF(L87<=F88,L88,IF(L87<=F89,L89,IF(L87<=F90,L90,IF(L87<=F91,L91,IF(L87<=F92,L92,L93))))) -> 0.8 | E98: =IF(C98=1,1,IF(C98=L89,L88,IF(C98=L90,L89,IF(C98=L91,L90,IF(C98=L92,L91,L92))))) -> 0.95 | G98: =IF(C98=E98,1,((L87-VLOOKUP(E98,L88:R93,7,FALSE))/(VLOOKUP(C98,L88:R93,7,FALSE)-VLOOKUP(E98,L88:R93,7,FALSE)))*(C98-E98)+E98) -> 0.8 | I98: =L87*G98 -> 4.8
B99: Economies of Scale Multiplication factor for Task 7 | C99: =IF(M87<=G88,M88,IF(M87<=G89,M89,IF(M87<=G90,M90,IF(M87<=G91,M91,IF(M87<=G92,M92,M93))))) -> 0.25 | D99: =IF(N87<=H88,N88,IF(N87<=H89,N89,IF(N87<=H90,N90,IF(N87<=H91,N91,IF(N87<=H92,N92,N93))))) -> 0.5 | E99: =IF(C99=1,1,IF(C99=M89,M88,IF(C99=M90,M89,IF(C99=M91,M90,IF(C99=M92,M91,M92))))) -> 0.3 | F99: =IF(D99=1,1,IF(D99=N89,N88,IF(D99=N90,N89,IF(D99=N91,N90,IF(D99=N92,N91,N92))))) -> 0.8 | G99: =IF(C99=E99,1,((M87-VLOOKUP(E99,M88:S93,7,FALSE))/(VLOOKUP(C99,M88:S93,7,FALSE)-VLOOKUP(E99,M88:S93,7,FALSE)))*(C99-E99)+E99) -> 0.29 | H99: =IF(D99=F99,1,((N87-VLOOKUP(F99,N88:T93,7,FALSE))/(VLOOKUP(D99,N88:T93,7,FALSE)-VLOOKUP(F99,N88:T93,7,FALSE)))*(D99-F99)+F99) -> 0.65 | I99: =M87*G99+N87*H99 -> 11.28
A101: Range
A102: Determine the range for the results on the final output table
C103: 0.1 | D103: To determine lower/upper bounds of project activities
C104: 0.3 | D104: To determine upper bound of Task 5 (Calibration)
A107: CALCULATIONS
A108: Total number of labor hours for Intersections: | D108: Engineer/
C109: Manager | D109: Planner | E109: Technician | F109: Total
A110: Project Task | C110: Hours | D110: Hours | E110: Hours | F110: Hours
A111: 1 | B111: Develop workplan, analysis plan, and project management | C111: =C27*$C$9 -> 12 | D111: 12 | E111: 6 | F111: =SUM(C111:E111) -> 30
A112: 2 | B112: Select analysis tool | C112: 6 | D112: 6 | E112: 0 | F112: =F28*$C$9 -> 12
A113: 3 | B113: Develop data plan and process data | C113: 0 | D113: 0 | E113: 18 | F113: =F29*$C$9 -> 18
A114: 4 | B114: Define clusters and representative days | C114: 6 | D114: 12 | E114: 0 | F114: =SUM(C114:E114) -> 18
A115: 5 | B115: Develop and calibrate baseline model(s) | C115: 3 | D115: 6 | E115: 6 | F115: 15
A116: 6 | B116: Develop future baseline model(s) | C116: 3 | D116: 3 | E116: 3 | F116: 9
A117: 7 | B117: Analyze alternatives | C117: 1.2 | D117: 6 | E117: 3 | F117: 10.2
A118: 8 | B118: Reports and presentations | C118: 12 | D118: 12 | E118: 6 | F118: 30
B119: Total Labor Hours | C119: =SUM(C111:C118) -> 43.2 | D119: =SUM(D111:D118) -> 57 | E119: =SUM(E111:E118) -> 42 | F119: 142.2
A122: Total number of labor hours for Freeway Ramps: | D122: Engineer/
C123: Manager | D123: Planner | E123: Technician | F123: Total
A124: Project Task | C124: Hours | D124: Hours | E124: Hours | F124: Hours
A125: 1 | B125: Develop workplan, analysis plan, and project management | C125: =C40*$C$10 -> 20 | D125: 20 | E125: 10 | F125: =SUM(C125:E125) -> 50
A126: 2 | B126: Select analysis tool | C126: 10 | D126: 10 | E126: 0 | F126: =SUM(C126:E126) -> 20
A127: 3 | B127: Develop data plan and process data | C127: 0 | D127: 0 | E127: 30 | F127: =SUM(C127:E127) -> 30
A128: 4 | B128: Define clusters and representative days | C128: 10 | D128: 20 | E128: 0 | F128: 30
A129: 5 | B129: Develop and calibrate baseline model(s) | C129: 5 | D129: 10 | E129: 20 | F129: 35
A130: 6 | B130: Develop future baseline model(s) | C130: 5 | D130: 5 | E130: 5 | F130: 15
A131: 7 | B131: Analyze alternatives | C131: 5 | D131: 10 | E131: 5 | F131: 20
A132: 8 | B132: Reports and presentations | C132: 20 | D132: 20 | E132: 10 | F132: 50
B133: Total Labor Hours | C133: =SUM(C125:C132) -> 75 | D133: =SUM(D125:D132) -> 95 | E133: =SUM(E125:E132) -> 80 | F133: =SUM(C133:E133) -> 250
A136: Total number of labor hours (Intersections + Ramps): | D136: Engineer/
C137: Manager | D137: Planner | E137: Technician | F137: Total
A138: Project Task | C138: Hours | D138: Hours | E138: Hours | F138: Hours
A139: 1 | B139: Develop workplan, analysis plan, and project management | C139: =C111+C125 -> 32 | D139: 32 | E139: 16 | F139: =SUM(C139:E139) -> 80
A140: 2 | B140: Select analysis tool | C140: 16 | D140: 16 | E140: 0 | F140: =SUM(C140:E140) -> 32
A141: 3 | B141: Develop data plan and process data | C141: 0 | D141: 0 | E141: 48 | F141: =SUM(C141:E141) -> 48
A142: 4 | B142: Define clusters and representative days | C142: 16 | D142: 32 | E142: 0 | F142: =SUM(C142:E142) -> 48
A143: 5 | B143: Develop and calibrate baseline model(s) | C143: 8 | D143: 16 | E143: 26 | F143: 50
A144: 6 | B144: Develop future baseline model(s) | C144: 8 | D144: 8 | E144: 8 | F144: 24
A145: 7 | B145: Analyze alternatives | C145: 6.2 | D145: 16 | E145: 8 | F145: 30.2
A146: 8 | B146: Reports and presentations | C146: 32 | D146: 32 | E146: 16 | F146: 80
B147: Total Labor Hours | C147: 118.2 | D147: 152 | E147: 122 | F147: 392.2
A149: Adjustmentof data clustering for number of representative days: | D149: Engineer/
C150: Manager | D150: Planner | E150: Technician | F150: Total
A151: Project Task | C151: Hours | D151: Hours | E151: Hours | F151: Hours
A152: 4 | B152: Define clusters and representative days (additional) | C152: =C142*$C$15 -> 16 | D152: =D142*$C$15 -> 32 | E152: =E142*$C$15 -> 0 | F152: =SUM(C152:E152) -> 48
A153: 4 | B153: Define clusters and representative days (total) | C153: =C152 -> 16 | D153: =D152 -> 32 | E153: =E152 -> 0 | F153: =SUM(C153:E153) -> 48
A156: Adjustment for different data processing types: | D156: Engineer/
C157: Manager | D157: Planner | E157: Technician | F157: Total
A158: Project Task | C158: Hours | D158: Hours | E158: Hours | F158: Hours
A159: 3 | B159: Develop data plan and process data (additional) | C159: =VLOOKUP($C$17,$B$59:$C$61,2,FALSE)*C141*$I$96 -> 0 | D159: =VLOOKUP($C$17,$B$59:$C$61,2,FALSE)*D141*$I$96 -> 0 | E159: =VLOOKUP($C$17,$B$59:$C$61,2,FALSE)*E141*$I$96 -> 24 | F159: =SUM(C159:E159) -> 24
A160: 3 | B160: Develop data plan and process data (total) | C160: =C159 -> 0 | D160: =D159 -> 0 | E160: =E159 -> 24 | F160: =SUM(C160:E160) -> 24
A162: Adjustment for Baseline model availability: | D162: Engineer/
C163: Manager | D163: Planner | E163: Technician | F163: Total
A164: Project Task | C164: Hours | D164: Hours | E164: Hours | F164: Hours
A165: 5 | B165: Develop and calibrate baseline model(s) (additional) | C165: =(IF($C$11="Yes",VLOOKUP($C$11&$C$12,$B$52:$C$53,2,FALSE),VLOOKUP($C$11,$B$54:$C$55,2,FALSE))-1)*C143 -> 0 | D165: =(IF($C$11="Yes",VLOOKUP($C$11&$C$12,$B$52:$C$53,2,FALSE),VLOOKUP($C$11,$B$54:$C$55,2,FALSE))-1)*D143 -> 0 | E165: =(IF($C$11="Yes",VLOOKUP($C$11&$C$12,$B$52:$C$53,2,FALSE),VLOOKUP($C$11,$B$54:$C$55,2,FALSE))-1)*E143 -> 0 | F165: =SUM(C165:E165) -> 0
A166: 5 | B166: Develop and calibrate baseline model(s) (total) | C166: =C143+C165 -> 8 | D166: =D143+D165 -> 16 | E166: =E143+E165 -> 26 | F166: =SUM(C166:E166) -> 50
A168: Adjustment for number of peak periods | D168: Engineer/
C169: Manager | D169: Planner | E169: Technician | F169: Total
A170: Project Task | C170: Hours | D170: Hours | E170: Hours | F170: Hours
A171: 5 | B171: Develop and calibrate baseline model(s) (additional) | C171: =$I$97*C166 -> 31.84 | D171: =$I$97*D166 -> 63.68 | E171: =$I$97*E166 -> 103.48 | F171: =SUM(C171:E171) -> 199
A172: 5 | B172: Develop and calibrate baseline model(s) (total) | C172: =C166+C171 -> 39.84 | D172: =D166+D171 -> 79.68 | E172: =E166+E171 -> 129.48 | F172: =SUM(C172:E172) -> 249
A174: Adjustment for complexity of alternatives: | D174: Engineer/
C175: Manager | D175: Planner | E175: Technician | F175: Total
A176: Project Task | C176: Hours | D176: Hours | E176: Hours | F176: Hours
A177: 1 | B177: Develop workplan, analysis plan, and project management (additional) | C177: =(VLOOKUP($C$18,$B$65:$C$66,2,FALSE)-1)*C139 -> 6.4 | D177: 6.4 | E177: 3.2 | F177: =SUM(C177:E177) -> 16
A178: 2 | B178: Select analysis tool (additional) | C178: 3.2 | D178: 3.2 | E178: 0 | F178: =SUM(C178:E178) -> 6.4
A179: 3 | B179: Develop data plan and process data (additional) | C179: =(VLOOKUP($C$18,$B$65:$C$66,2,FALSE)-1)*C160 -> 0 | D179: =(VLOOKUP($C$18,$B$65:$C$66,2,FALSE)-1)*D160 -> 0 | E179: =(VLOOKUP($C$18,$B$65:$C$66,2,FALSE)-1)*E160 -> 4.8 | F179: =SUM(C179:E179) -> 4.8
A180: 4 | B180: Define clusters and representative days (additional) | C180: =(VLOOKUP($C$18,$B$65:$C$66,2,FALSE)-1)*C153 -> 3.2 | D180: =(VLOOKUP($C$18,$B$65:$C$66,2,FALSE)-1)*D153 -> 6.4 | E180: =(VLOOKUP($C$18,$B$65:$C$66,2,FALSE)-1)*E153 -> 0 | F180: 9.6
A181: 5 | B181: Develop and calibrate baseline model(s) (additional) | C181: =(VLOOKUP($C$18,$B$65:$C$66,2,FALSE)-1)*C172 -> 7.968 | D181: =(VLOOKUP($C$18,$B$65:$C$66,2,FALSE)-1)*D172 -> 15.936 | E181: =(VLOOKUP($C$18,$B$65:$C$66,2,FALSE)-1)*E172 -> 25.896 | F181: 49.8
A182: 6 | B182: Develop future baseline model(s) (additional) | C182: =(VLOOKUP($C$18,$B$65:$C$66,2,FALSE)-1)*C144 -> 1.6 | D182: 1.6 | E182: 1.6 | F182: 4.8
A183: 7 | B183: Analyze alternatives (additional) | C183: 1.24 | D183: 3.2 | E183: 1.6 | F183: 6.04
A184: 8 | B184: Reports and presentations (additional) | C184: 6.4 | D184: 6.4 | E184: 3.2 | F184: 16
A185: 1 | B185: Develop workplan, analysis plan, and project management (total) | C185: =C139+C177 -> 38.4 | D185: 38.4 | E185: 19.2 | F185: =SUM(C185:E185) -> 96
A186: 2 | B186: Select analysis tool (total) | C186: 19.2 | D186: 19.2 | E186: 0 | F186: =SUM(C186:E186) -> 38.4
A187: 3 | B187: Develop data plan and process data (total) | C187: =C160+C179 -> 0 | D187: =D160+D179 -> 0 | E187: =E160+E179 -> 28.8 | F187: =SUM(C187:E187) -> 28.8
A188: 4 | B188: Define clusters and representative days (total) | C188: =C153+C180 -> 19.2 | D188: =D153+D180 -> 38.4 | E188: =E153+E180 -> 0 | F188: 57.6
A189: 5 | B189: Develop and calibrate baseline model(s) (total) | C189: =C172+C181 -> 47.808 | D189: =D172+D181 -> 95.616 | E189: =E172+E181 -> 155.376 | F189: 298.8
A190: 6 | B190: Develop future baseline model(s) (total) | C190: =C144+C182 -> 9.6 | D190: 9.6 | E190: 9.6 | F190: 28.8
A191: 7 | B191: Analyze alternatives (total) | C191: 7.44 | D191: 19.2 | E191: 9.6 | F191: 36.24
A192: 8 | B192: Reports and presentations (total) | C192: 38.4 | D192: 38.4 | E192: 19.2 | F192: 96
A194: Adjustment for complexity of methodologies | D194: Engineer/
C195: Manager | D195: Planner | E195: Technician | F195: Total
A196: Project Task | C196: Hours | D196: Hours | E196: Hours | F196: Hours
A197: 5 | B197: Develop and calibrate baseline model(s) (additional) | C197: =(VLOOKUP($C$19,$B$71:$C$72,2,FALSE)-1)*C189 -> 14.3424 | D197: 28.6848 | E197: 46.6128 | F197: =SUM(C197:E197) -> 89.64
A198: 6 | B198: Develop future baseline model(s) (additional) | C198: 2.88 | D198: 2.88 | E198: 2.88 | F198: 8.64
A199: 7 | B199: Analyze alternatives (additional) | C199: 2.232 | D199: 5.76 | E199: 2.88 | F199: 10.872
A200: 5 | B200: Develop and calibrate baseline model(s) (total) | C200: =C189+C197 -> 62.1504 | D200: =D189+D197 -> 124.3008 | E200: 201.9888 | F200: 388.44
A201: 6 | B201: Develop future baseline model(s) (total) | C201: =C190+C198 -> 12.48 | D201: 12.48 | E201: 12.48 | F201: 37.44
A202: 7 | B202: Analyze alternatives (total) | C202: 9.672 | D202: 24.96 | E202: 12.48 | F202: 47.112
A204: Adjustment for number of future scenarios and alternatives | D204: Engineer/
C205: Manager | D205: Planner | E205: Technician | F205: Total
A206: Project Task | C206: Hours | D206: Hours | E206: Hours | F206: Hours
A207: 6 | B207: Develop future baseline model(s) (additional) | C207: =$I$98*C201 -> 59.904 | D207: =$I$98*D201 -> 59.904 | E207: =$I$98*E201 -> 59.904 | F207: =SUM(C207:E207) -> 179.712
A208: 6 | B208: Develop future baseline model(s) (total) | C208: =C201+C207 -> 72.384 | D208: =D201+D207 -> 72.384 | E208: =E201+E207 -> 72.384 | F208: =SUM(C208:E208) -> 217.152
A210: Adjustment for number of operational conditions | D210: Engineer/
C211: Manager | D211: Planner | E211: Technician | F211: Total
A212: Project Task | C212: Hours | D212: Hours | E212: Hours | F212: Hours
A213: 7 | B213: Analyze alternatives (additional) | C213: =$I$99*C202 -> 109.10016 | D213: =$I$99*D202 -> 281.5488 | E213: =$I$99*E202 -> 140.7744 | F213: =SUM(C213:E213) -> 531.42336
A214: 7 | B214: Analyze alternatives (total) | C214: =C202+C213 -> 118.77216 | D214: =D202+D213 -> 306.5088 | E214: =E202+E213 -> 153.2544 | F214: =SUM(C214:E214) -> 578.53536
A216: Adjustment for complexity of different types of outputs | D216: Engineer/
C217: Manager | D217: Planner | E217: Technician | F217: Total
A218: Project Task | C218: Hours | D218: Hours | E218: Hours | F218: Hours
A219: 7 | B219: Analyze alternatives (additional) | C219: =(VLOOKUP($C$20,$B$76:$C$77,2,FALSE)-1)*C214 -> -11.877216 | D219: =(VLOOKUP($C$20,$B$76:$C$77,2,FALSE)-1)*D214 -> -30.65088 | E219: =(VLOOKUP($C$20,$B$76:$C$77,2,FALSE)-1)*E214 -> -15.32544 | F219: =SUM(C219:E219) -> -57.853536
A220: 7 | B220: Analyze alternatives (total) | C220: =C219+C214 -> 106.894944 | D220: =D219+D214 -> 275.85792 | E220: =E219+E214 -> 137.92896 | F220: =SUM(C220:E220) -> 520.681824
A222: Adjustment for professional experience | D222: Engineer/
C223: Manager | D223: Planner | E223: Technician | F223: Total
A224: Project Task | C224: Hours | D224: Hours | E224: Hours | F224: Hours
A225: 1 | B225: Develop workplan, analysis plan, and project management (additional) | C225: =(VLOOKUP($C$21,$B$81:$C$82,2,FALSE)-1)*C185 -> -3.84 | D225: -3.84 | E225: -1.92 | F225: =SUM(C225:E225) -> -9.6
A226: 2 | B226: Select analysis tool (additional) | C226: -1.92 | D226: -1.92 | E226: 0 | F226: =SUM(C226:E226) -> -3.84
A227: 3 | B227: Develop data plan and process data (additional) | C227: 0 | D227: 0 | E227: -2.88 | F227: =SUM(C227:E227) -> -2.88
A228: 4 | B228: Define clusters and representative days (additional) | C228: -1.92 | D228: -3.84 | E228: 0 | F228: -5.76
A229: 5 | B229: Develop and calibrate baseline model(s) (additional) | C229: =(VLOOKUP($C$21,$B$81:$C$82,2,FALSE)-1)*C200 -> -6.21504 | D229: =(VLOOKUP($C$21,$B$81:$C$82,2,FALSE)-1)*D200 -> -12.43008 | E229: =(VLOOKUP($C$21,$B$81:$C$82,2,FALSE)-1)*E200 -> -20.19888 | F229: -38.844
A230: 6 | B230: Develop future baseline model(s) (additional) | C230: =(VLOOKUP($C$21,$B$81:$C$82,2,FALSE)-1)*C208 -> -7.2384 | D230: =(VLOOKUP($C$21,$B$81:$C$82,2,FALSE)-1)*D208 -> -7.2384 | E230: =(VLOOKUP($C$21,$B$81:$C$82,2,FALSE)-1)*E208 -> -7.2384 | F230: -21.7152
A231: 7 | B231: Analyze alternatives (additional) | C231: =(VLOOKUP($C$21,$B$81:$C$82,2,FALSE)-1)*C220 -> -10.6894944 | D231: =(VLOOKUP($C$21,$B$81:$C$82,2,FALSE)-1)*D220 -> -27.585792 | E231: =(VLOOKUP($C$21,$B$81:$C$82,2,FALSE)-1)*E220 -> -13.792896 | F231: -52.0681824
A232: 8 | B232: Reports and presentations (additional) | C232: =(VLOOKUP($C$21,$B$81:$C$82,2,FALSE)-1)*C192 -> -3.84 | D232: =(VLOOKUP($C$21,$B$81:$C$82,2,FALSE)-1)*D192 -> -3.84 | E232: =(VLOOKUP($C$21,$B$81:$C$82,2,FALSE)-1)*E192 -> -1.92 | F232: -9.6
A233: 1 | B233: Develop workplan, analysis plan, and project management (total) | C233: =C225+C185 -> 34.56 | D233: 34.56 | E233: 17.28 | F233: =SUM(C233:E233) -> 86.4
A234: 2 | B234: Select analysis tool (total) | C234: 17.28 | D234: 17.28 | E234: 0 | F234: =SUM(C234:E234) -> 34.56
A235: 3 | B235: Develop data plan and process data (total) | C235: 0 | D235: 0 | E235: 25.92 | F235: =SUM(C235:E235) -> 25.92
A236: 4 | B236: Define clusters and representative days (total) | C236: 17.28 | D236: 34.56 | E236: 0 | F236: 51.84
... 28 more rows

Sheet Output
B1: =Input!B1 -> Transportation Analysis Project Costing Tool
A3: OUTPUT REPORT
A4: Estimate of Labor Hours Required to Complete the Analysis of:
B5: =Study_Area -> I-4 Test
D6: Engineer/
C7: Manager | D7: Planner | E7: Technician | F7: Total | G7: Lower | H7: Upper
B8: Project Task | C8: Hours | D8: Hours | E8: Hours | F8: Hours | G8: Bound | H8: Bound
A9: 1 | B9: =Calculations!B259 -> Develop workplan, analysis plan, and project management | C9: =Calculations!C259 -> 30 | D9: =Calculations!D259 -> 30 | E9: =Calculations!E259 -> 20 | F9: =SUM(C9:E9) -> 80 | G9: =Calculations!G259 -> 70 | H9: =Calculations!H259 -> 90
A10: 2 | B10: =Calculations!B260 -> Select analysis tool | C10: =Calculations!C260 -> 20 | D10: =Calculations!D260 -> 20 | E10: =Calculations!E260 -> 0 | F10: =SUM(C10:E10) -> 40 | G10: =Calculations!G260 -> 40 | H10: =Calculations!H260 -> 40
A11: 3 | B11: =Calculations!B261 -> Develop data plan and process data | C11: =Calculations!C261 -> 0 | D11: =Calculations!D261 -> 0 | E11: =Calculations!E261 -> 30 | F11: =SUM(C11:E11) -> 30 | G11: =Calculations!G261 -> 30 | H11: =Calculations!H261 -> 30
A12: 4 | B12: =Calculations!B262 -> Define clusters and representative days | C12: =Calculations!C262 -> 20 | D12: =Calculations!D262 -> 30 | E12: =Calculations!E262 -> 0 | F12: =SUM(C12:E12) -> 50 | G12: =Calculations!G262 -> 50 | H12: =Calculations!H262 -> 60
A13: 5 | B13: =Calculations!B263 -> Develop and calibrate baseline model(s) | C13: =Calculations!C263 -> 60 | D13: =Calculations!D263 -> 110 | E13: =Calculations!E263 -> 180 | F13: 350 | G13: =Calculations!G263 -> 320 | H13: =Calculations!H263 -> 460
A14: 6 | B14: =Calculations!B264 -> Develop future baseline model(s) | C14: =Calculations!C264 -> 70 | D14: =Calculations!D264 -> 70 | E14: =Calculations!E264 -> 70 | F14: 210 | G14: =Calculations!G264 -> 190 | H14: =Calculations!H264 -> 230
A15: 7 | B15: =Calculations!B265 -> Analyze alternatives | C15: =Calculations!C265 -> 100 | D15: =Calculations!D265 -> 250 | E15: =Calculations!E265 -> 120 | F15: 470 | G15: =Calculations!G265 -> 420 | H15: =Calculations!H265 -> 520
A16: 8 | B16: =Calculations!B266 -> Reports and presentations | C16: =Calculations!C266 -> 30 | D16: =Calculations!D266 -> 30 | E16: =Calculations!E266 -> 10 | F16: 70 | G16: =Calculations!G266 -> 60 | H16: =Calculations!H266 -> 80
B17: Total Labor Hours | C17: =SUM(C9:C16) -> 330 | D17: 540 | E17: 430 | F17: 1300 | G17: 1180 | H17: 1510
